bitfinex-derivatives/quotes_BTCF0:USTF0_20241009
["timestamp","ask_amount","ask_price","bid_price","bid_amount"]
[1728432002699,0.7266,62206.0,62205.0,0.01762498]
[1728432003696,0.7266,62206.0,62205.0,0.01262436]
[1728432004901,0.7266,62206.0,62200.0,0.01522964]
[1728432005090,0.3608,62201.0,62200.0,0.01522964]
[1728432007701,0.38446884,62201.0,62200.0,0.01522964]
[1728432013103,0.2968,62201.0,62200.0,0.01522964]
[1728432013308,0.2968,62201.0,62200.0,0.49754964]
[1728432014104,0.2968,62201.0,62200.0,1.09754964]
[1728432014598,0.2968,62201.0,62200.0,0.49754964]
[1728432016003,0.2968,62201.0,62200.0,0.01522964]
[1728432017506,0.2968,62201.0,62200.0,0.49754964]
[1728432017910,0.2968,62201.0,62200.0,0.01522964]
[1728432022412,0.32981961,62201.0,62200.0,0.01522964]
[1728432022811,0.32974899,62201.0,62200.0,0.01522964]
[1728432023217,1.1717,62201.0,62200.0,0.01522964]
[1728432030617,1.25212,62201.0,62200.0,0.01522964]
[1728432032603,0.080423,62199.0,62198.0,0.0152922]
[1728432032909,0.955323,62199.0,62198.0,0.0152922]
[1728432034226,0.8749,62199.0,62198.0,0.0152922]
[1728432036827,0.8749,62199.0,62198.0,0.0244822]
[1728432038119,0.8749,62200.0,62198.0,0.0244822]
[1728432042025,0.8749,62200.0,62198.0,0.0642822]
[1728432043538,0.8749,62200.0,62199.0,0.080423]
[1728432043938,0.2968,62201.0,62199.0,0.080423]
[1728432044539,0.2968,62201.0,62200.0,0.080422]
[1728432046945,0.2968,62201.0,62200.0,1.162742]
[1728432048641,0.2968,62201.0,62200.0,0.562742]
[1728432049145,0.2968,62201.0,62200.0,0.080422]
[1728432049335,0.2968,62201.0,62200.0,0.562742]
[1728432049843,0.372,62206.0,62200.0,0.562742]
[1728432050140,0.372,62206.0,62205.0,0.080415]
[1728432050440,0.3608,62206.0,62205.0,0.080415]
[1728432051241,0.3668,62206.0,62205.0,0.080415]
[1728432052841,0.3698,62206.0,62205.0,0.080415]
[1728432059043,0.009,62206.0,62205.0,0.080415]
[1728432059236,0.3698,62206.0,62205.0,0.080415]
[1728432060552,0.3698,62206.0,62201.0,0.08042]
[1728432060753,0.3698,62206.0,62198.0,0.1067822]
[1728432060754,0.3608,62202.0,62198.0,0.0642822]
[1728432060945,0.3608,62199.0,62198.0,0.0244822]
[1728432061360,0.441223,62199.0,62198.0,0.0244822]
[1728432063551,0.46455941,62199.0,62198.0,0.0244822]
[1728432064443,0.38413641,62199.0,62198.0,0.1049062]
[1728432064849,0.38413641,62199.0,62198.0,0.080424]
[1728432065047,0.080424,62198.0,62197.0,0.0103454]
[1728432066256,0.081424,62198.0,62197.0,0.0103454]
[1728432066852,1.163744,62198.0,62197.0,0.0103454]
[1728432067660,0.563744,62198.0,62197.0,0.0103454]
[1728432068055,0.603444,62198.0,62197.0,0.0103454]
[1728432068361,1.325044,62198.0,62197.0,0.0103454]
[1728432069754,0.842724,62198.0,62197.0,0.0103454]
[1728432071363,0.882024,62198.0,62197.0,0.0103454]
[1728432071562,0.803024,62198.0,62197.0,0.0103454]
[1728432071766,0.3618,62198.0,62197.0,0.0907704]
[1728432072073,0.3608,62201.0,62197.0,1.1730904]
[1728432072359,0.3608,62201.0,62200.0,0.080422]
[1728432073358,0.1715,62201.0,62200.0,0.080422]
[1728432073561,0.0037,62206.0,62205.0,0.080415]
[1728432073768,0.3645,62213.0,62212.0,0.080406]
[1728432073957,0.3608,62213.0,62212.0,0.080406]
[1728432075461,0.3708,62213.0,62212.0,0.080406]
[1728432075866,0.3838,62213.0,62212.0,0.080406]
[1728432082368,0.3838,62213.0,62212.0,0.270406]
[1728432082767,0.3838,62213.0,62212.0,0.761796]
[1728432082967,0.3838,62213.0,62212.0,0.279596]
[1728432084270,0.3738,62213.0,62212.0,0.279596]
[1728432084463,0.3658,62213.0,62212.0,0.279596]
[1728432094979,0.3658,62213.0,62212.0,1.361796]
[1728432096274,0.005,62213.0,62212.0,1.361796]
[1728432098683,0.005,62213.0,62212.0,0.761796]
[1728432098883,0.005,62213.0,62212.0,1.361796]
[1728432101975,0.005,62213.0,62212.0,0.761796]
[1728432102175,0.005,62213.0,62212.0,1.40981294]
[1728432102377,0.005,62213.0,62212.0,1.361796]
[1728432103588,0.005,62213.0,62212.0,1.42596232]
[1728432107794,0.005,62213.0,62212.0,0.82596232]
[1728432108488,0.005,62213.0,62212.0,1.42596232]
[1728432109284,0.005,62213.0,62212.0,1.361796]
[1728432110196,0.005,62213.0,62212.0,1.171796]
[1728432110496,0.005,62213.0,62212.0,0.279596]
[1728432114390,0.005,62213.0,62212.0,0.270406]
[1728432120506,0.005,62213.0,62212.0,0.200406]
[1728432128904,0.005,62213.0,62212.0,0.209596]
[1728432132313,0.3645,62220.0,62219.0,0.080397]
[1728432132506,0.080388,62226.0,62225.0,0.080389]
[1728432132702,0.080388,62226.0,62225.0,0.196689]
[1728432132898,0.080388,62226.0,62225.0,0.24477512]
[1728432133098,0.4005,62227.0,62226.0,0.080388]
[1728432134310,0.42378049,62227.0,62226.0,0.080388]
[1728432134621,0.4145,62227.0,62226.0,0.080388]
[1728432135314,0.4285,62227.0,62226.0,0.080388]
[1728432135813,0.0677,62227.0,62226.0,0.080388]
[1728432136013,0.0677,62227.0,62226.0,0.12843041]
[1728432136612,0.0677,62227.0,62226.0,0.080388]
[1728432138608,0.0677,62227.0,62226.0,0.200388]
[1728432141208,0.0677,62227.0,62226.0,0.22336557]
[1728432141913,0.148087,62227.0,62226.0,0.080388]
[1728432145117,0.148087,62227.0,62225.0,0.12]
[1728432145118,0.0677,62227.0,62225.0,0.12]
[1728432145318,0.080388,62226.0,62225.0,0.12]
[1728432145710,0.080388,62226.0,62219.0,0.05924241]
[1728432145711,0.080396,62221.0,62219.0,0.05924241]
[1728432145927,0.0804,62217.0,62216.0,0.0112]
[1728432146115,0.0804,62217.0,62212.0,0.00919]
[1728432146116,0.080404,62214.0,62212.0,0.089595]
[1728432146419,0.080405,62213.0,62212.0,0.089595]
[1728432146726,0.118205,62213.0,62212.0,0.12919]
[1728432147520,0.119205,62213.0,62212.0,0.12919]
[1728432147730,0.122205,62213.0,62212.0,0.209596]
[1728432148125,0.242205,62213.0,62212.0,0.00919]
[1728432148328,0.080417,62204.0,62202.0,0.084218]
[1728432148629,0.5508,62203.0,62197.0,0.0103454]
[1728432148921,0.121119,62202.0,62199.0,0.08283341]
[1728432149512,0.0407,62202.0,62199.0,0.00241141]
[1728432149722,0.080421,62201.0,62199.0,0.00241141]
[1728432150224,0.080421,62201.0,62199.0,0.00541141]
[1728432150419,0.080421,62201.0,62199.0,0.00941141]
[1728432150612,0.0417,62202.0,62199.0,0.00941141]
[1728432150917,0.0417,62202.0,62199.0,0.00241141]
[1728432150918,0.080422,62200.0,62199.0,0.00241141]
[1728432151121,0.080422,62200.0,62199.0,0.00941141]
[1728432151527,0.159022,62200.0,62199.0,0.00941141]
[1728432152126,0.001,62201.0,62200.0,0.080422]
[1728432153015,0.002,62202.0,62201.0,0.08042]
[1728432153532,0.001,62202.0,62201.0,0.08042]
[1728432153848,0.3608,62203.0,62202.0,0.080419]
[1728432155120,0.3628,62203.0,62202.0,0.080419]
[1728432155324,0.443218,62203.0,62202.0,0.080419]
[1728432155622,0.080424,62198.0,62197.0,0.0103454]
[1728432155827,0.080425,62197.0,62196.0,0.01513572]
[1728432156718,1.162785,62197.0,62196.0,0.01513572]
[1728432156933,0.080429,62194.0,62193.0,0.01218491]
[1728432157144,0.631229,62194.0,62193.0,0.01218491]
[1728432157340,1.713589,62194.0,62193.0,0.01218491]
[1728432157636,0.080431,62193.0,62189.0,0.01181596]
[1728432158136,1.08236,62193.0,62189.0,0.01181596]
[1728432158437,0.080434,62190.0,62189.0,0.01181596]
[1728432158642,0.631234,62190.0,62189.0,0.01181596]
[1728432158933,1.713634,62190.0,62189.0,0.01181596]
[1728432159434,0.080446,62181.0,62168.0,0.080462]
[1728432159628,0.08045,62178.0,62177.0,0.01403929]
[1728432159834,1.04125,62178.0,62177.0,0.01403929]
[1728432160035,1.52373,62178.0,62177.0,0.01403929]
[1728432160933,1.52373,62178.0,62177.0,0.01503929]
[1728432161335,1.52373,62178.0,62177.0,0.01703929]
[1728432161530,1.52373,62178.0,62165.0,0.0081]
[1728432161837,0.631259,62171.0,62161.0,0.00241293]
[1728432162231,1.713819,62171.0,62161.0,0.00241293]
[1728432163627,1.715819,62171.0,62161.0,0.00241293]
[1728432163826,1.715819,62171.0,62162.0,0.0037]
[1728432164034,1.715819,62171.0,62170.0,0.00352168]
[1728432164236,1.715819,62171.0,62162.0,0.0037]
[1728432164237,0.080468,62164.0,62162.0,0.0037]
[1728432164447,0.5508,62164.0,62156.0,0.0119823]
[1728432164734,0.631277,62157.0,62156.0,0.0119823]
[1728432166836,0.632277,62157.0,62156.0,0.0119823]
[1728432167334,0.633277,62157.0,62156.0,0.0129823]
[1728432168033,1.115917,62157.0,62156.0,0.0129823]
[1728432169224,1.713917,62157.0,62156.0,0.0129823]
[1728432169429,1.714917,62157.0,62156.0,0.0129823]
[1728432170937,1.232277,62157.0,62156.0,3e-07]
[1728432171237,1.714917,62157.0,62156.0,3e-07]
[1728432171737,1.714917,62157.0,62149.0,0.01446113]
[1728432172039,0.631286,62150.0,62149.0,0.01446113]
[1728432172249,0.631286,62150.0,62142.0,0.01181392]
[1728432172250,1.114006,62150.0,62142.0,0.01181392]
[1728432172431,0.441295,62143.0,62142.0,0.01181392]
[1728432172933,1.524055,62143.0,62142.0,0.01181392]
[1728432173641,0.442295,62143.0,62142.0,0.01281392]
[1728432178845,0.3618,62143.0,62142.0,0.01281392]
[1728432179942,0.442295,62143.0,62142.0,0.01281392]
[1728432180746,1.715055,62143.0,62142.0,0.01281392]
[1728432182839,1.715055,62143.0,62142.0,9.2e-07]
[1728432184252,1.717055,62143.0,62142.0,9.2e-07]
[1728432184645,1.527055,62143.0,62142.0,9.2e-07]
[1728432184848,1.716055,62143.0,62135.0,0.01172303]
[1728432185051,0.631304,62136.0,62135.0,0.01172303]
[1728432186152,0.632304,62136.0,62135.0,0.01172303]
[1728432187456,0.632304,62136.0,62135.0,3e-08]
[1728432187653,1.715104,62136.0,62135.0,3e-08]
[1728432188151,1.716104,62136.0,62135.0,3e-08]
[1728432188655,1.715104,62136.0,62135.0,3e-08]
[1728432190853,0.442304,62136.0,62135.0,3e-08]
[1728432191050,0.65494083,62136.0,62135.0,3e-08]
[1728432191753,0.46494083,62136.0,62135.0,3e-08]
[1728432197068,0.3076,62136.0,62135.0,0.08050603]
[1728432197661,0.388104,62136.0,62135.0,0.08050603]
[1728432198265,0.3076,62136.0,62135.0,0.08050603]
[1728432199365,0.3076,62136.0,62135.0,3e-08]
[1728432199568,0.388104,62136.0,62135.0,3e-08]
[1728432206958,0.388104,62136.0,62135.0,0.08050603]
[1728432208968,0.3076,62136.0,62135.0,0.08050603]
[1728432209161,0.444996,62143.0,62135.0,1.44360003]
[1728432209162,0.3645,62143.0,62135.0,1.44360003]
[1728432209360,0.0112,62146.0,62142.0,0.5508]
[1728432209361,0.0037,62146.0,62142.0,0.5508]
[1728432209560,0.00241506,62149.0,62148.0,0.080489]
[1728432210161,0.3608,62152.0,62148.0,0.0679]
[1728432210366,0.3608,62152.0,62151.0,0.270485]
[1728432211068,0.3608,62152.0,62151.0,0.080485]
[1728432212856,0.3668,62152.0,62151.0,0.080485]
[1728432213359,0.3708,62152.0,62151.0,0.080485]
[1728432214266,0.3728,62152.0,62151.0,0.080485]
[1728432214871,0.3668,62152.0,62151.0,0.080485]
[1728432215169,0.3748,62152.0,62151.0,0.080485]
[1728432215568,0.3748,62152.0,62151.0,0.270485]
[1728432215764,0.3748,62152.0,62151.0,1.353165]
[1728432215960,0.0037,62159.0,62151.0,1.353165]
[1728432216164,0.3608,62165.0,62161.0,0.080472]
[1728432216165,0.0037,62162.0,62161.0,0.080472]
[1728432216365,0.3608,62165.0,62164.0,0.080468]
[1728432217663,0.080473,62160.0,62158.0,0.080476]
[1728432218872,0.007,62159.0,62158.0,0.080476]
[1728432219261,0.3748,62165.0,62154.0,0.19]
[1728432219479,0.3748,62165.0,62164.0,0.19]
[1728432219971,0.3608,62165.0,62164.0,0.270468]
[1728432220774,0.3748,62165.0,62164.0,0.271468]
[1728432221476,0.3748,62165.0,62164.0,0.081468]
[1728432222278,0.3748,62165.0,62164.0,0.082468]
[1728432222493,0.3888,62165.0,62164.0,0.082468]
[1728432223972,0.3888,62165.0,62155.0,0.0037]
[1728432224172,0.3608,62156.0,62155.0,0.080479]
[1728432224382,0.08048,62155.0,62151.0,0.09208823]
[1728432224683,0.08048,62155.0,62152.0,0.080483]
[1728432224881,0.08048,62155.0,62151.0,0.01160323]
[1728432224882,0.08048,62155.0,62154.0,0.080481]
[1728432225270,0.0037,62163.0,62151.0,0.20160323]
[1728432225271,0.080475,62159.0,62158.0,0.080474]
[1728432225473,0.080475,62159.0,62158.0,0.19]
[1728432225669,0.080475,62159.0,62158.0,0.270476]
[1728432225868,0.3608,62160.0,62159.0,0.080475]
[1728432226071,0.3608,62160.0,62159.0,0.563115]
[1728432226270,0.3608,62160.0,62159.0,1.163115]
[1728432226470,0.3678,62165.0,62164.0,0.080468]
[1728432226674,0.080464,62168.0,62164.0,0.19]
[1728432226869,0.080464,62168.0,62167.0,0.080464]
[1728432229071,0.088464,62168.0,62167.0,0.081464]
[1728432229278,0.094464,62168.0,62167.0,0.081464]
[1728432230577,0.094464,62168.0,62167.0,0.001]
[1728432232190,0.094464,62168.0,62158.0,0.0037]
[1728432232191,0.080466,62166.0,62158.0,0.0037]
[1728432232379,0.080484,62152.0,62151.0,0.00919]
[1728432232580,0.441284,62152.0,62151.0,0.00919]
[1728432233775,0.441284,62152.0,62151.0,0.01019]
[1728432233983,0.446284,62152.0,62151.0,0.01019]
[1728432235379,0.449284,62152.0,62151.0,0.01019]
[1728432237375,0.639284,62152.0,62151.0,0.01019]
[1728432242084,0.449284,62152.0,62151.0,0.01019]
[1728432242490,0.449284,62152.0,62151.0,0.20019]
[1728432242789,0.3688,62152.0,62151.0,0.280675]
[1728432245190,0.3688,62152.0,62151.0,0.090675]
[1728432247180,0.449284,62152.0,62151.0,0.01019]
[1728432247688,0.449284,62152.0,62151.0,0.001]
[1728432254196,0.449284,62152.0,62151.0,0.081485]
[1728432256090,0.3688,62152.0,62151.0,0.081485]
[1728432256290,0.3688,62152.0,62151.0,0.271485]
[1728432264706,0.008,62152.0,62151.0,0.271485]
[1728432264890,0.0037,62159.0,62151.0,1.63448]
[1728432265090,0.0037,62162.0,62161.0,0.080472]
[1728432265300,0.080471,62162.0,62161.0,0.080472]
[1728432266486,0.080471,62162.0,62161.0,0.081472]
[1728432266690,0.094471,62162.0,62161.0,0.081472]
[1728432267894,0.107471,62162.0,62161.0,0.082472]
[1728432269397,0.027,62162.0,62161.0,0.082472]
[1728432270402,0.027,62162.0,62161.0,0.272472]
[1728432270612,0.084162,62169.0,62168.0,0.080463]
[1728432270613,0.0037,62169.0,62168.0,0.080463]
[1728432270793,0.3608,62179.0,62175.0,0.080454]
[1728432270794,0.0037,62176.0,62175.0,0.080454]
[1728432271109,0.3608,62179.0,62178.0,0.08045]
[1728432271403,0.3645,62179.0,62178.0,0.27045]
[1728432271906,0.35531,62179.0,62178.0,1.35293]
[1728432272600,0.0037,62179.0,62178.0,1.35293]
[1728432273805,0.0107,62179.0,62178.0,1.35393]
[1728432274008,0.0107,62179.0,62178.0,1.35493]
[1728432274803,0.3608,62185.0,62184.0,0.080442]
[1728432275002,0.3608,62185.0,62184.0,0.270442]
[1728432275302,0.3608,62185.0,62184.0,0.752882]
[1728432275606,0.3608,62185.0,62184.0,0.270442]
[1728432275904,0.3608,62185.0,62184.0,0.080442]
[1728432276211,0.3608,62185.0,62184.0,0.270442]
[1728432276589,0.3608,62185.0,62184.0,0.271442]
[1728432276590,0.3638,62185.0,62184.0,0.271442]
[1728432277217,0.3638,62185.0,62184.0,0.272442]
[1728432277898,0.3638,62185.0,62184.0,0.082442]
[1728432280109,0.3638,62185.0,62184.0,0.272442]
[1728432282894,0.3638,62185.0,62184.0,0.082442]
[1728432283100,0.3638,62185.0,62168.0,0.00084]
[1728432283303,0.3638,62185.0,62170.0,0.08046]
[1728432283304,0.080458,62172.0,62170.0,0.08046]
[1728432285102,0.080458,62172.0,62170.0,0.08146]
[1728432285615,0.7216,62173.0,62170.0,0.08146]
[1728432285616,0.080459,62171.0,62170.0,0.08146]
[1728432286703,0.080459,62171.0,62170.0,0.08046]
[1728432287401,0.081459,62171.0,62170.0,0.08046]
[1728432287603,0.3618,62171.0,62170.0,0.08046]
[1728432287816,0.080461,62170.0,62167.0,0.080464]
[1728432287998,0.080461,62170.0,62168.0,0.080463]
[1728432289720,0.080461,62170.0,62169.0,0.080462]
[1728432290415,0.081461,62170.0,62169.0,0.080462]
[1728432291121,0.082461,62170.0,62169.0,0.080462]
[1728432294510,0.002,62170.0,62169.0,0.080462]
[1728432294712,0.002,62170.0,62169.0,0.270462]
[1728432295721,0.001,62170.0,62169.0,0.270462]
[1728432296613,0.001,62170.0,62169.0,0.271462]
[1728432301813,0.35331,62170.0,62169.0,0.271462]
[1728432305514,0.35431,62170.0,62169.0,0.271462]
[1728432307016,0.35331,62170.0,62169.0,0.271462]
[1728432307724,0.080456,62174.0,62169.0,0.191]
[1728432307921,0.080456,62174.0,62172.0,0.080458]
[1728432309610,0.3608,62173.0,62172.0,0.080458]
[1728432310013,0.441256,62173.0,62172.0,0.080458]
[1728432310220,0.3608,62173.0,62169.0,0.191]
[1728432310419,0.5508,62170.0,62163.0,0.0037]
[1728432310631,0.5508,62170.0,62155.0,0.00241287]
[1728432310632,0.080478,62156.0,62155.0,0.00241287]
[1728432310919,0.441278,62156.0,62155.0,0.00241287]
[1728432311727,0.441278,62156.0,62155.0,0.08289287]
[1728432313212,0.445278,62156.0,62155.0,0.08289287]
[1728432313415,0.445278,62156.0,62155.0,0.00241287]
[1728432313817,0.445278,62156.0,62155.0,0.00341287]
[1728432314324,0.442278,62156.0,62155.0,0.00241287]
[1728432314523,0.445278,62156.0,62155.0,0.00341287]
[1728432314735,0.444278,62156.0,62155.0,0.00341287]
[1728432315029,0.445278,62156.0,62155.0,0.00341287]
[1728432317428,0.445278,62156.0,62155.0,0.08389287]
[1728432317731,0.3648,62156.0,62155.0,0.08389287]
[1728432319327,0.004,62156.0,62155.0,0.08389287]
[1728432319532,0.3648,62156.0,62155.0,0.08389287]
[1728432322528,0.3638,62156.0,62155.0,0.08389287]
[1728432322726,0.003,62156.0,62155.0,0.08389287]
[1728432323320,0.003,62156.0,62155.0,0.44469287]
[1728432323519,0.003,62156.0,62155.0,0.92737287]
[1728432323719,0.39557019,62168.0,62155.0,1.44689287]
[1728432323921,0.38437019,62168.0,62167.0,0.270464]
[1728432325037,0.3608,62168.0,62167.0,0.270464]
[1728432325234,0.080459,62171.0,62168.0,0.080463]
[1728432325634,0.3608,62172.0,62168.0,0.080463]
[1728432325832,0.3608,62177.0,62168.0,1.523823]
[1728432326037,0.3608,62177.0,62176.0,0.270453]
[1728432327628,0.3608,62177.0,62176.0,0.271453]
[1728432327829,0.45092,62183.0,62182.0,0.080445]
[1728432328542,0.45092,62183.0,62182.0,0.116345]
[1728432329243,0.36321286,62189.0,62182.0,0.51834]
[1728432329546,0.36321286,62189.0,62188.0,0.270437]
[1728432329547,0.00241286,62189.0,62188.0,0.270437]
[1728432329760,0.00241286,62189.0,62188.0,0.631237]
[1728432330239,0.3608,62198.0,62197.0,0.080425]
[1728432330440,0.3608,62198.0,62197.0,0.270425]
[1728432331242,0.3608,62198.0,62197.0,0.276425]
[1728432331635,0.81372,62205.0,62197.0,0.196]
[1728432331832,0.3608,62205.0,62204.0,0.080416]
[1728432332038,0.3608,62212.0,62203.0,0.19]
[1728432332233,0.00241208,62214.0,62211.0,0.19]
[1728432332443,0.0112,62225.0,62211.0,0.5508]
[1728432332743,0.47377176,62229.0,62227.0,0.080386]
[1728432333135,0.19,62228.0,62218.0,0.037]
[1728432333338,0.3608,62223.0,62218.0,0.037]
[1728432333836,0.3608,62223.0,62207.0,0.00806403]
[1728432334037,0.3608,62216.0,62208.0,0.0378]
[1728432334344,0.3608,62216.0,62213.0,0.080405]
[1728432336142,0.3608,62216.0,62214.0,0.080403]
[1728432336348,0.3638,62216.0,62214.0,0.080403]
[1728432337047,0.3638,62216.0,62213.0,0.002]
[1728432337346,0.3638,62216.0,62211.0,0.19]
[1728432337347,0.3608,62216.0,62215.0,0.080402]
[1728432337648,0.3638,62216.0,62215.0,0.080402]
[1728432338339,0.3638,62216.0,62215.0,0.270402]
[1728432338645,0.3638,62216.0,62215.0,0.271402]
[1728432339639,0.3638,62216.0,62215.0,0.081402]
[1728432339946,0.3638,62216.0,62215.0,0.082402]
[1728432340545,0.5538,62216.0,62206.0,0.00084]
[1728432340737,0.5538,62216.0,62171.0,0.10439706]
[1728432340738,0.3608,62207.0,62202.0,0.0037]
[1728432340938,0.3608,62207.0,62198.0,0.08283408]
[1728432341140,0.3608,62201.0,62198.0,0.08283408]
[1728432341437,0.3608,62201.0,62200.0,0.080422]
[1728432343161,0.44122,62201.0,62200.0,0.004]
[1728432343841,0.44222,62201.0,62200.0,0.004]
[1728432344446,0.44322,62201.0,62200.0,0.005]
[1728432345346,0.44322,62201.0,62200.0,0.001]
[1728432345551,0.44322,62201.0,62200.0,0.002]
[1728432346456,0.44322,62201.0,62200.0,0.001]
[1728432346749,0.44322,62201.0,62188.0,0.0037]
[1728432346750,0.080436,62189.0,62188.0,0.0037]
[1728432346945,0.080436,62189.0,62181.0,0.19]
[1728432346946,0.3608,62189.0,62181.0,0.19]
[1728432347142,0.080437,62188.0,62183.0,0.080443]
[1728432347543,0.080437,62188.0,62184.0,0.080442]
[1728432348441,0.081437,62188.0,62184.0,0.080442]
[1728432348946,0.081437,62188.0,62184.0,0.081442]
[1728432349756,0.081437,62188.0,62184.0,0.084442]
[1728432350443,0.3618,62188.0,62184.0,0.084442]
[1728432350643,0.08044,62186.0,62184.0,0.084442]
[1728432350954,0.080441,62185.0,62184.0,0.004]
[1728432351966,0.083441,62185.0,62184.0,0.004]
[1728432353556,0.082441,62185.0,62184.0,0.004]
[1728432354052,0.080441,62185.0,62184.0,0.003]
[1728432354347,0.082441,62185.0,62184.0,0.004]
[1728432354945,0.085441,62185.0,62184.0,0.001]
[1728432355745,0.002,62185.0,62184.0,0.002]
[1728432356047,0.002,62185.0,62184.0,0.082442]
[1728432356249,0.3608,62188.0,62184.0,0.081442]
[1728432356457,0.002,62185.0,62184.0,0.081442]
[1728432356659,0.002,62185.0,62184.0,0.082442]
[1728432359547,0.002,62185.0,62184.0,0.081442]
[1728432359741,0.002,62185.0,62184.0,0.082442]
[1728432360150,0.082441,62185.0,62184.0,0.002]
[1728432361255,0.080442,62184.0,62173.0,0.080456]
[1728432361555,0.3608,62176.0,62173.0,0.080456]
[1728432361958,0.080457,62173.0,62170.0,0.08287252]
[1728432362263,0.631259,62171.0,62170.0,0.00241252]
[1728432362960,0.5508,62171.0,62164.0,0.080467]
[1728432363155,0.3608,62166.0,62164.0,0.080467]
[1728432363544,0.3608,62166.0,62161.0,0.0387]
[1728432363748,0.3608,62166.0,62159.0,0.037]
[1728432363749,0.080473,62161.0,62159.0,0.037]
[1728432363954,0.441273,62161.0,62159.0,0.037]
[1728432364357,0.3608,62161.0,62160.0,0.080473]
[1728432364557,0.080467,62165.0,62160.0,0.080473]
[1728432364762,0.080468,62164.0,62160.0,0.080473]
[1728432366558,0.080468,62164.0,62160.0,0.095473]
[1728432366953,0.080468,62164.0,62160.0,0.015]
[1728432367159,0.080468,62164.0,62161.0,0.080472]
[1728432367358,0.080468,62164.0,62162.0,0.080471]
[1728432368349,0.3608,62166.0,62162.0,0.19]
[1728432368551,0.3608,62166.0,62165.0,0.080467]
[1728432369770,0.3638,62166.0,62165.0,0.080467]
[1728432369966,0.3638,62166.0,62165.0,0.087467]
[1728432374760,0.3638,62166.0,62165.0,0.125967]
[1728432375666,0.003,62166.0,62165.0,0.125967]
[1728432378165,0.273466,62166.0,62165.0,0.007]
[1728432378672,0.273466,62166.0,62165.0,0.00499893]
[1728432379263,0.347366,62166.0,62165.0,0.00499893]
[1728432387164,0.829966,62166.0,62165.0,0.00499893]
[1728432390075,0.347366,62166.0,62165.0,0.00499893]
[1728432390475,1.429966,62166.0,62165.0,0.00499893]
[1728432390779,0.86160052,62166.0,62165.0,0.00499893]
[1728432391170,1.46160052,62166.0,62165.0,0.00499893]
[1728432391373,1.46164374,62166.0,62165.0,0.00499893]
[1728432392678,0.86164374,62166.0,62165.0,0.00499893]
[1728432393483,0.829966,62166.0,62165.0,0.00499893]
[1728432394181,0.080486,62150.0,62146.0,0.12862345]
[1728432394477,0.08049,62147.0,62146.0,0.08049]
[1728432395876,0.003,62147.0,62146.0,0.08049]
[1728432396078,0.003,62147.0,62146.0,0.08449]
[1728432397473,0.080481,62154.0,62153.0,0.080481]
[1728432397776,0.080481,62154.0,62153.0,0.270481]
[1728432398586,0.092481,62154.0,62153.0,0.271481]
[1728432399677,0.092481,62154.0,62153.0,0.270481]
[1728432399883,0.091481,62154.0,62153.0,0.271481]
[1728432400086,0.011,62154.0,62153.0,0.271481]
[1728432400676,0.007,62154.0,62153.0,0.273481]
[1728432402784,0.3608,62155.0,62153.0,0.272481]
[1728432402984,0.3608,62155.0,62153.0,0.273481]
[1728432403378,0.3608,62154.0,62153.0,0.273481]
[1728432404593,0.441281,62154.0,62153.0,0.273481]
[1728432404808,0.441281,62154.0,62153.0,0.271481]
[1728432404982,0.441281,62154.0,62153.0,0.272481]
[1728432405391,0.441281,62154.0,62153.0,0.271481]
[1728432405692,0.444281,62154.0,62153.0,0.271481]
[1728432405892,0.444281,62154.0,62153.0,0.272481]
[1728432406402,0.444281,62154.0,62153.0,0.082481]
[1728432406700,0.441281,62154.0,62153.0,0.081481]
[1728432406884,0.444281,62154.0,62153.0,0.082481]
[1728432407888,0.444281,62154.0,62153.0,0.081481]
[1728432408091,0.444281,62154.0,62153.0,0.082481]
[1728432408287,0.444281,62154.0,62153.0,0.081481]
[1728432408288,0.441281,62154.0,62153.0,0.081481]
[1728432408486,0.444281,62154.0,62153.0,0.082481]
[1728432408691,0.445281,62154.0,62153.0,0.081481]
[1728432410591,0.3648,62154.0,62153.0,0.081481]
[1728432410989,0.3638,62154.0,62153.0,0.081481]
[1728432411191,0.36321395,62160.0,62159.0,0.080475]
[1728432412595,0.36321395,62160.0,62159.0,0.081475]
[1728432413098,0.36321395,62160.0,62159.0,0.082475]
[1728432413099,0.36621395,62160.0,62159.0,0.082475]
[1728432414090,0.36621395,62160.0,62159.0,0.083475]
[1728432414493,0.36321395,62160.0,62159.0,0.083475]
[1728432414891,0.36321395,62160.0,62159.0,0.082475]
[1728432415499,0.36321395,62160.0,62159.0,0.081475]
[1728432417095,0.36421395,62160.0,62159.0,0.081475]
[1728432418601,0.00341395,62160.0,62159.0,0.081475]
[1728432418808,0.00241395,62160.0,62159.0,0.081475]
[1728432421102,0.00341395,62160.0,62159.0,0.081475]
[1728432422503,0.00441395,62160.0,62159.0,0.081475]
[1728432422892,0.0037,62169.0,62168.0,0.080463]
[1728432423098,0.08046,62171.0,62170.0,0.08046]
[1728432423393,0.3608,62174.0,62173.0,0.080456]
[1728432423593,0.3608,62174.0,62173.0,0.270456]
[1728432424895,0.3658,62174.0,62173.0,0.270456]
[1728432426096,0.3658,62174.0,62173.0,0.271456]
[1728432427198,0.3658,62174.0,62173.0,0.001]
[1728432427403,0.636255,62174.0,62173.0,0.001]
[1728432427698,0.634255,62174.0,62173.0,0.001]
[1728432428307,0.08046,62171.0,62168.0,0.080462]
[1728432429100,0.5528,62174.0,62168.0,0.080462]
[1728432429408,0.637255,62174.0,62173.0,0.001]
[1728432430102,0.447255,62174.0,62173.0,0.001]
[1728432430498,0.637255,62174.0,62173.0,0.001]